bitfinex/quotes_BTCUSD_20250826
["timestamp","ask_amount","ask_price","bid_price","bid_amount"]
[1756169835121,0.00774566,109540.0,109530.0,0.18259837]
[1756169835260,0.18747453,109540.0,109530.0,0.36063837]
[1756169835456,0.1846217,109540.0,109530.0,0.36063837]
[1756169835775,0.61250703,109540.0,109530.0,0.36063837]
[1756169836070,0.61575703,109540.0,109530.0,0.17804]
[1756169836284,0.18259837,109530.0,109500.0,0.35348284]
[1756169836501,0.18259837,109530.0,109510.0,0.36063172]
[1756169836502,0.00570672,109520.0,109510.0,0.36063172]
[1756169836715,0.61945709,109520.0,109510.0,0.36063172]
[1756169836920,0.61254037,109520.0,109510.0,0.36063172]
[1756169837133,0.61254037,109520.0,109510.0,0.178]
[1756169837566,0.61254037,109520.0,109510.0,0.36063172]
[1756169837974,0.62682859,109520.0,109510.0,0.178]
[1756169838184,0.62682859,109520.0,109510.0,0.36063172]
[1756169838389,0.71225928,109520.0,109510.0,0.17796]
[1756169838601,0.18263172,109510.0,109500.0,0.07024]
[1756169838798,0.18263172,109510.0,109500.0,0.2482]
[1756169838799,0.61255705,109510.0,109500.0,0.2482]
[1756169839162,0.61255705,109510.0,109500.0,0.4308484]
[1756169839366,0.19690326,109520.0,109500.0,0.4329784]
[1756169839544,0.00285362,109510.0,109500.0,0.4329784]
[1756169839769,0.62478859,109520.0,109510.0,0.18263172]
[1756169839968,0.01428822,109520.0,109510.0,0.18777172]
[1756169840172,0.01428822,109520.0,109510.0,0.20522074]
[1756169840571,0.19690326,109520.0,109510.0,0.20008074]
[1756169840773,0.19728326,109520.0,109510.0,0.37796074]
[1756169841174,0.01428822,109520.0,109510.0,0.38009074]
[1756169841823,0.01428822,109520.0,109510.0,0.37796074]
[1756169842288,0.01428822,109520.0,109510.0,0.38009074]
[1756169842480,0.19728326,109520.0,109510.0,0.37796074]
[1756169842671,0.19728326,109520.0,109510.0,0.20008074]
[1756169842846,0.19728326,109520.0,109510.0,0.64662074]
[1756169843054,0.19728326,109520.0,109510.0,0.46878074]
[1756169843461,0.19728326,109520.0,109510.0,0.64662074]
[1756169843721,0.61410037,109520.0,109510.0,0.4465]
[1756169844651,0.18263172,109510.0,109500.0,0.07024]
[1756169844914,0.1826484,109500.0,109490.0,0.22325858]
[1756169845120,0.1846884,109500.0,109490.0,0.21853736]
[1756169845292,0.21763488,109500.0,109490.0,0.00014386]
[1756169845491,0.21763488,109500.0,109490.0,0.17790386]
[1756169846073,0.1846884,109500.0,109490.0,0.17790386]
[1756169846284,0.95574373,109500.0,109490.0,0.00014386]
[1756169846499,0.97275748,109500.0,109490.0,0.17790386]
[1756169847120,0.98704943,109500.0,109490.0,0.17790386]
[1756169847379,1.07849472,109500.0,109490.0,0.17790386]
[1756169847998,1.07849472,109500.0,109490.0,0.00014386]
[1756169848417,4.23646472,109500.0,109490.0,0.00014386]
[1756169848642,4.66435005,109500.0,109490.0,0.00014386]
[1756169849297,4.76435005,109500.0,109490.0,0.00014386]
[1756169849513,0.18273184,109450.0,109440.0,0.07024]
[1756169849727,0.18273184,109450.0,109440.0,0.17782394]
[1756169849728,0.61270717,109450.0,109440.0,0.17782394]
[1756169849936,0.40218045,109450.0,109440.0,0.17782394]
[1756169850157,0.58491229,109450.0,109440.0,0.17782394]
[1756169850351,0.58808229,109450.0,109440.0,0.00014394]
[1756169850551,0.97624814,109450.0,109440.0,0.00014394]
[1756169851859,0.95270717,109450.0,109440.0,0.00014394]
[1756169854692,0.95587717,109450.0,109440.0,0.00014394]
[1756169855145,0.95270717,109450.0,109440.0,0.00014394]
[1756169855352,0.95587717,109450.0,109440.0,0.00014394]
[1756169855532,0.52482184,109450.0,109440.0,0.00014394]
[1756169855702,0.95270717,109450.0,109440.0,0.00014394]
[1756169856227,0.96700591,109450.0,109440.0,0.00014394]
[1756169856395,1.0584512,109450.0,109440.0,0.00014394]
[1756169856593,0.96700591,109450.0,109440.0,0.00014394]
[1756169856927,0.97017591,109450.0,109440.0,0.00014394]
[1756169857273,0.96700591,109450.0,109440.0,0.00014394]
[1756169857425,0.19703058,109450.0,109440.0,0.18797247]
[1756169857606,0.62491591,109450.0,109440.0,0.17885247]
[1756169857795,0.62491591,109450.0,109440.0,0.35845247]
[1756169857999,0.39703058,109450.0,109440.0,0.35845247]
[1756169858405,0.39912058,109450.0,109440.0,0.1776]
[1756169859052,0.82700591,109450.0,109440.0,0.1776]
[1756169859453,0.18276523,109430.0,109420.0,0.29379758]
[1756169859609,0.61065056,109430.0,109420.0,0.4888066]
[1756169859816,0.18276523,109430.0,109420.0,0.4908066]
[1756169860207,0.19706481,109430.0,109420.0,0.4908066]
[1756169860668,0.19706481,109430.0,109420.0,0.4938866]
[1756169860876,0.70572001,109430.0,109420.0,0.2498]
[1756169861042,0.96704014,109430.0,109420.0,0.07024]
[1756169861277,0.18278194,109420.0,109410.0,0.44626]
[1756169861446,0.96495014,109430.0,109410.0,0.36235864]
[1756169861647,0.53706795,109430.0,109420.0,0.18278194]
[1756169861845,0.53706795,109430.0,109420.0,0.18478194]
[1756169862047,0.01429958,109430.0,109420.0,0.18786194]
[1756169862662,0.18276523,109430.0,109420.0,0.18786194]
[1756169865072,0.18276523,109430.0,109420.0,0.36534194]
[1756169865505,0.18278194,109420.0,109410.0,4e-05]
[1756169865652,0.61275727,109420.0,109410.0,0.17748]
[1756169865853,0.18487194,109420.0,109410.0,0.17748]
[1756169866056,0.18278194,109420.0,109410.0,0.36535864]
[1756169866654,0.61065056,109430.0,109410.0,0.36535864]
[1756169866853,0.19058386,109420.0,109410.0,0.36027864]
[1756169867028,0.18487194,109420.0,109410.0,0.17748]
[1756169867232,0.61275727,109420.0,109410.0,0.17748]
[1756169867592,0.42788533,109420.0,109410.0,0.18483864]
[1756169867800,0.18487194,109420.0,109410.0,4e-05]
[1756169868013,0.18487194,109420.0,109410.0,0.36023864]
[1756169868210,0.18487194,109420.0,109410.0,0.36223864]
[1756169868580,0.1991734,109420.0,109410.0,0.36223864]
[1756169868731,0.1991734,109420.0,109410.0,0.17944]
[1756169868936,0.70835813,109420.0,109410.0,0.17744]
[1756169869176,0.62705873,109420.0,109410.0,4e-05]
[1756169869360,0.44218679,109420.0,109410.0,0.36223864]
[1756169869534,0.01430146,109420.0,109410.0,0.36531864]
[1756169869734,0.20488532,109420.0,109410.0,0.18483864]
[1756169869941,0.82705873,109420.0,109410.0,0.1774]
[1756169870193,0.83022873,109420.0,109410.0,0.1774]
[1756169870371,0.92167402,109420.0,109410.0,0.1774]
[1756169871174,0.91850402,109420.0,109410.0,0.1774]
[1756169871628,0.82496873,109420.0,109410.0,0.36219864]
[1756169871822,0.82496873,109420.0,109410.0,0.36527864]
[1756169871823,0.3970834,109420.0,109410.0,0.36527864]
[1756169872236,0.3991734,109420.0,109410.0,4e-05]
[1756169872407,1.17022873,109420.0,109410.0,4e-05]
[1756169872608,1.24737256,109420.0,109410.0,4e-05]
[1756169873369,0.81948723,109420.0,109410.0,4e-05]
[1756169873582,0.38278194,109420.0,109410.0,0.18791864]
[1756169873784,0.2,109420.0,109410.0,0.18791864]
[1756169874446,0.38487194,109420.0,109410.0,0.00204]
[1756169874644,0.81275727,109420.0,109410.0,0.17728]
[1756169874799,0.90211256,109420.0,109410.0,0.36207864]
[1756169875791,0.47422723,109420.0,109410.0,0.36207864]
[1756169876133,0.48852857,109420.0,109410.0,0.36207864]
[1756169876453,0.39708328,109420.0,109410.0,0.36207864]
[1756169876572,0.23130507,109420.0,109410.0,0.36508864]
[1756169877189,0.21430134,109420.0,109410.0,0.36508864]
[1756169877994,0.21430134,109420.0,109410.0,0.45281766]
[1756169878210,0.2,109420.0,109410.0,0.45281766]
[1756169878334,0.2,109420.0,109410.0,0.54426295]
[1756169878536,0.2,109420.0,109410.0,0.63572497]
[1756169878985,0.2,109420.0,109410.0,0.90442497]
[1756169879186,0.2,109420.0,109410.0,0.72718497]
[1756169879389,0.2,109420.0,109410.0,0.81289968]
[1756169880436,0.2,109420.0,109410.0,1.24078501]
[1756169880627,0.2,109420.0,109410.0,1.58078501]
[1756169880853,0.2,109420.0,109410.0,0.97573968]
[1756169881016,0.2,109420.0,109410.0,1.24430497]
[1756169881220,0.2,109420.0,109410.0,1.6721903]
[1756169881425,0.2,109420.0,109410.0,1.24426497]
[1756169881993,0.2,109420.0,109410.0,1.6721503]
[1756169883469,0.20014367,109450.0,109440.0,0.18274853]
[1756169883688,0.21718779,109450.0,109440.0,1.33397177]
[1756169883899,0.21718779,109450.0,109440.0,1.33698177]
[1756169884107,0.20014367,109450.0,109440.0,1.33698177]
[1756169884542,0.20014367,109450.0,109440.0,1.33694177]
[1756169885420,0.20014367,109450.0,109440.0,1.73694177]
[1756169885646,0.20014367,109450.0,109440.0,1.30901644]
[1756169885845,0.20014367,109450.0,109440.0,1.77854703]
[1756169886454,0.20014367,109450.0,109440.0,1.60158703]
[1756169886702,0.20014367,109450.0,109440.0,1.77850703]
[1756169886904,0.0142933,109480.0,109470.0,0.20014747]
[1756169887114,0.03983851,109480.0,109470.0,0.62201287]
[1756169887456,0.03983851,109480.0,109470.0,0.62502287]
[1756169887457,0.03132344,109480.0,109470.0,0.62502287]
[1756169887658,0.03131882,109480.0,109470.0,0.36702949]
[1756169887872,0.03131882,109480.0,109470.0,0.54394949]
[1756169888478,0.03131882,109480.0,109470.0,0.55298328]
[1756169888892,0.00570776,109500.0,109490.0,0.18266508]
[1756169889096,0.18585419,109520.0,109510.0,0.18263172]
[1756169889298,0.63546423,109520.0,109510.0,0.35947172]
[1756169889433,1.06690952,109520.0,109510.0,0.17684]
[1756169889638,0.97546423,109520.0,109510.0,0.17684]
[1756169889865,0.98975331,109520.0,109510.0,0.17684]
[1756169890231,0.1826484,109500.0,109490.0,0.2001141]
[1756169890431,0.1846184,109500.0,109490.0,0.3769141]
[1756169890631,0.1877784,109500.0,109490.0,0.01744902]
[1756169890909,0.61566373,109500.0,109490.0,0.3769141]
[1756169891345,0.20206885,109500.0,109490.0,0.3769141]
[1756169891543,0.20206885,109500.0,109490.0,0.19420902]
[1756169891677,0.20206885,109500.0,109490.0,0.3768741]
[1756169891895,0.20206885,109500.0,109490.0,0.19420902]
[1756169892101,0.01429045,109500.0,109490.0,0.3820141]
[1756169892288,0.01429045,109500.0,109490.0,0.5308577]
[1756169892697,0.52276245,109520.0,109510.0,0.18263172]
[1756169892963,0.52473245,109520.0,109510.0,0.35935172]
[1756169893122,0.02566077,109520.0,109510.0,0.36148172]
[1756169893328,0.02566077,109520.0,109510.0,0.37893074]
[1756169893590,0.02566077,109520.0,109510.0,0.41600445]
[1756169893793,0.02566077,109520.0,109510.0,0.41299445]
[1756169894352,0.64129114,109520.0,109510.0,0.20008074]
[1756169894559,0.02763077,109520.0,109510.0,0.37676074]
[1756169894757,0.03364413,109520.0,109510.0,0.37680074]
[1756169895160,0.03361063,109520.0,109510.0,0.41736214]
[1756169895618,0.02562727,109520.0,109510.0,0.42250214]
[1756169895835,0.02562727,109520.0,109510.0,0.41949214]
[1756169896047,0.03991525,109520.0,109510.0,0.47853272]
[1756169896457,0.04473861,109520.0,109510.0,0.41728214]
[1756169896666,0.03991525,109520.0,109510.0,0.42242214]
[1756169896919,0.03988497,109520.0,109510.0,0.42242214]
[1756169897118,0.03988497,109520.0,109510.0,0.41941214]
[1756169897329,0.03988215,109520.0,109510.0,0.41941214]
[1756169897748,0.03988215,109520.0,109510.0,0.48664486]
[1756169898173,0.03988215,109520.0,109510.0,0.48965486]
[1756169898388,0.03988215,109520.0,109510.0,0.51388416]
[1756169898389,0.03140062,109520.0,109510.0,0.51388416]
[1756169898609,0.18307363,109550.0,109530.0,0.18258875]
[1756169898610,0.00285283,109540.0,109530.0,0.18258875]
[1756169898830,0.0169618,109540.0,109530.0,0.37868777]
[1756169899046,0.02583001,109550.0,109540.0,0.1825817]
[1756169899300,0.03626959,109550.0,109540.0,0.1825817]
[1756169899531,0.21883462,109550.0,109540.0,0.1825817]
[1756169899739,0.21312948,109550.0,109540.0,0.1825817]
[1756169900670,0.03056445,109550.0,109540.0,0.1825817]
[1756169900940,0.03626959,109550.0,109540.0,0.1825817]
[1756169901339,0.21883462,109550.0,109540.0,0.1825817]
[1756169901502,0.21312948,109550.0,109540.0,0.1825817]
[1756169902277,0.02543445,109550.0,109540.0,0.20517072]
[1756169902714,0.02543445,109550.0,109540.0,0.29663274]
[1756169902920,0.02543445,109550.0,109540.0,0.47299274]
[1756169903045,0.02542766,109550.0,109540.0,0.47299274]
[1756169903240,0.0169563,109550.0,109540.0,0.47299274]
[1756169903659,0.0169563,109550.0,109540.0,0.46994274]
[1756169903901,0.0189263,109550.0,109540.0,0.46994274]
[1756169904137,0.0169563,109550.0,109540.0,0.46994274]
[1756169904546,0.0189263,109550.0,109540.0,0.51173093]
[1756169904754,0.0169563,109550.0,109540.0,0.51474093]
[1756169905444,0.18825299,109560.0,109550.0,0.18256503]
[1756169905700,0.20195681,109560.0,109550.0,0.18256503]
[1756169905951,0.20195681,109560.0,109540.0,0.33632093]
[1756169906139,0.20492602,109560.0,109550.0,0.17628]
[1756169906354,0.63281135,109560.0,109550.0,0.17628]
[1756169906573,0.18501779,109560.0,109550.0,0.35884503]
[1756169906797,0.61290312,109560.0,109550.0,0.35884503]
[1756169907266,0.18256503,109550.0,109540.0,0.05923721]
[1756169907496,0.43284533,109550.0,109540.0,0.41805891]
[1756169907728,0.61244036,109550.0,109540.0,0.41805891]
[1756169907959,0.61541036,109550.0,109540.0,0.23547721]
[1756169908658,0.1825817,109540.0,109530.0,0.52152875]
[1756169908956,0.61245703,109540.0,109530.0,0.5151]
[1756169909186,0.61245703,109540.0,109530.0,0.35638902]
[1756169909422,0.61542703,109540.0,109530.0,0.51506]
[1756169909651,0.61542703,109540.0,109530.0,0.2687]
[1756169909881,0.61542703,109540.0,109530.0,0.44482]
[1756169910132,0.19685023,109550.0,109540.0,0.1825817]
[1756169910381,0.0142852,109550.0,109540.0,0.1846017]
[1756169910620,0.0162752,109550.0,109540.0,0.1846017]
[1756169910808,0.02198034,109550.0,109540.0,0.1846017]
[1756169911510,0.21302149,109550.0,109540.0,0.1846017]
[1756169911739,0.20731635,109550.0,109530.0,0.37920739]
[1756169911961,0.61343703,109540.0,109530.0,0.20004739]
[1756169912237,0.42987533,109540.0,109530.0,0.37608739]
[1756169912461,0.62473556,109550.0,109540.0,0.1825817]
[1756169912692,0.00848065,109550.0,109540.0,0.20509072]
[1756169913130,0.00896064,109560.0,109550.0,0.18256503]
[1756169913363,0.43883953,109560.0,109510.0,0.00933606]
[1756169913617,0.5226484,109500.0,109490.0,0.027452]
[1756169913836,4.71437906,109500.0,109490.0,1e-08]
[1756169914060,4.91296429,109500.0,109490.0,1e-08]
[1756169914292,0.18269845,109470.0,109450.0,0.12936]
[1756169914533,0.18269922,109470.0,109460.0,0.00202]
[1756169914752,0.18271514,109460.0,109450.0,0.17262556]
[1756169915005,0.61060047,109460.0,109450.0,0.17464556]
[1756169915224,0.61060047,109460.0,109450.0,0.13456394]
[1756169915469,0.61060047,109460.0,109450.0,0.3347448]
[1756169915724,0.61060047,109460.0,109450.0,0.15201296]
[1756169915967,0.42788533,109460.0,109450.0,0.3347448]
[1756169916183,0.61060047,109460.0,109450.0,0.14897296]
[1756169916391,0.61060047,109460.0,109450.0,0.15201296]
[1756169916598,0.42788533,109460.0,109450.0,0.3347448]
[1756169917008,0.1969936,109470.0,109450.0,0.3347448]
[1756169917221,0.42788533,109460.0,109450.0,0.3347448]
[1756169917857,0.62487893,109470.0,109450.0,0.3347448]
[1756169918314,0.42788533,109460.0,109450.0,0.3347448]
[1756169918544,0.61060047,109460.0,109450.0,0.3347448]
[1756169919122,0.61060047,109460.0,109450.0,0.02265296]
[1756169919318,0.61060047,109460.0,109450.0,0.3812648]
[1756169919531,0.61060047,109460.0,109450.0,0.19853296]
[1756169919736,0.18271514,109460.0,109450.0,0.3812648]
[1756169919941,0.61060047,109460.0,109450.0,0.3812648]
[1756169920345,0.2,109460.0,109450.0,0.3812648]
[1756169920604,0.62788533,109460.0,109450.0,0.3812648]
[1756169922046,0.2,109460.0,109450.0,0.47272682]
[1756169923501,0.86074633,109460.0,109450.0,0.01759296]
[1756169923713,0.86369633,109460.0,109450.0,0.17590394]
[1756169923920,0.86369633,109460.0,109450.0,0.17586394]
[1756169924164,0.86369633,109460.0,109450.0,0.00014394]
[1756169924368,1.20369633,109460.0,109450.0,0.00014394]
[1756169924979,4.36166633,109460.0,109450.0,0.00014394]
[1756169925381,4.37860455,109460.0,109450.0,0.00014394]
[1756169925585,4.37860467,109460.0,109450.0,0.00014394]
[1756169926211,4.55432467,109460.0,109450.0,0.00014394]
[1756169926558,4.98221,109460.0,109450.0,0.00014394]
[1756169926760,4.98221,109460.0,109450.0,1e-08]
[1756169926969,4.99650941,109460.0,109450.0,1e-08]
[1756169927189,5.09650941,109460.0,109450.0,1e-08]
[1756169928973,4.12372041,109460.0,109450.0,1e-08]
[1756169929193,4.55160574,109460.0,109450.0,1e-08]
[1756169929420,4.03301574,109460.0,109450.0,1e-08]
[1756169929629,4.03301574,109460.0,109450.0,0.00506001]
[1756169929630,0.82489988,109460.0,109450.0,0.00506001]
[1756169929836,0.82688988,109460.0,109450.0,1e-08]
[1756169930296,0.82786988,109460.0,109450.0,1e-08]
[1756169930512,0.91931517,109460.0,109450.0,1e-08]
[1756169931530,1.25931517,109460.0,109450.0,1e-08]
[1756169932678,0.81615043,109460.0,109450.0,1e-08]
[1756169932921,0.72271514,109460.0,109450.0,0.00506001]
[1756169933166,0.62788533,109460.0,109450.0,0.18779185]
[1756169933644,0.81060047,109460.0,109450.0,0.00506001]
[1756169933865,0.2,109460.0,109450.0,0.20524087]
[1756169935618,0.46377374,109460.0,109450.0,0.02250903]
[1756169935831,0.89165907,109460.0,109450.0,0.19794903]
[1756169936288,0.90595436,109460.0,109450.0,0.19794903]
[1756169936511,0.90793436,109460.0,109450.0,1e-08]
[1756169936721,0.39701043,109460.0,109450.0,0.00531001]
[1756169936936,0.82489576,109460.0,109450.0,0.00531001]
[1756169937558,0.82489576,109460.0,109450.0,1e-08]
[1756169937859,0.82687576,109460.0,109450.0,1e-08]
[1756169938092,0.82489576,109460.0,109450.0,0.00531001]
[1756169938333,0.82489576,109460.0,109450.0,0.18804185]
[1756169938972,0.82489576,109460.0,109450.0,0.00531001]
[1756169939793,0.82489576,109460.0,109450.0,0.00206001]
[1756169941273,0.82489576,109460.0,109450.0,0.00531001]
[1756169941697,1.26127105,109460.0,109450.0,1e-08]
[1756169942122,1.24697576,109460.0,109450.0,1e-08]
[1756169942347,1.26098002,109460.0,109450.0,1e-08]
[1756169942578,1.16953473,109460.0,109450.0,1e-08]
[1756169943005,0.82756742,109460.0,109450.0,0.00531001]
[1756169943216,0.81060047,109460.0,109450.0,0.00531001]
[1756169943434,0.82759606,109460.0,109450.0,0.00531001]
[1756169943693,0.8275955,109460.0,109450.0,0.00531001]
[1756169943927,0.86470521,109460.0,109450.0,1e-08]
[1756169944202,0.43387988,109460.0,109450.0,1e-08]
[1756169944433,0.86176521,109460.0,109450.0,1e-08]
[1756169944642,0.85977521,109460.0,109450.0,0.00206001]
[1756169944854,0.21699503,109460.0,109450.0,0.20549087]
[1756169945062,0.2,109460.0,109450.0,0.36723289]
[1756169946101,0.38271514,109460.0,109450.0,0.36723289]
[1756169946488,0.39701045,109460.0,109450.0,0.36723289]
[1756169946911,0.86635187,109460.0,109450.0,0.26815903]
[1756169947307,0.66635187,109460.0,109450.0,0.26490903]
[1756169947492,0.68334191,109460.0,109450.0,0.26815903]
[1756169947900,0.21400049,109460.0,109450.0,0.26815903]
[1756169948095,0.02616443,109470.0,109450.0,0.27577087]
[1756169948295,0.02616443,109470.0,109450.0,0.49247059]
[1756169948296,0.18271514,109460.0,109450.0,0.49247059]
[1756169949094,0.61058604,109470.0,109450.0,0.49247059]
[1756169949313,0.61058604,109470.0,109460.0,0.00325]
[1756169949515,0.61058378,109470.0,109460.0,0.20547416]
[1756169949755,0.61058378,109470.0,109460.0,0.02275902]
[1756169950198,0.61058378,109470.0,109460.0,0.20547416]
[1756169951451,0.18269845,109470.0,109460.0,0.20547416]
[1756169952541,0.61058378,109470.0,109460.0,0.20547416]
[1756169953000,0.61058378,109470.0,109460.0,0.02275902]
[1756169954361,0.53184312,109480.0,109460.0,0.20547416]
[1756169954590,0.42788533,109470.0,109460.0,0.20547416]
[1756169954809,0.42788533,109470.0,109460.0,0.38035416]
[1756169955044,0.61058378,109470.0,109460.0,0.38035416]
[1756169955925,0.61256378,109470.0,109460.0,0.01744902]
[1756169956156,0.61058378,109470.0,109460.0,0.37710416]
[1756169956382,0.61257378,109470.0,109460.0,0.20547416]
[1756169956574,0.61257378,109470.0,109460.0,0.01744902]
[1756169956924,0.61257378,109470.0,109460.0,0.20016416]
[1756169957132,0.61257378,109470.0,109460.0,0.01744902]
[1756169957459,0.42788533,109470.0,109460.0,0.20547416]
[1756169957716,0.61058378,109470.0,109460.0,0.20547416]
[1756169957934,0.61972845,109480.0,109460.0,0.20547416]
[1756169958136,0.18269845,109470.0,109460.0,0.20547416]
[1756169958332,0.19699284,109470.0,109460.0,0.64893416]
[1756169960093,0.44217972,109470.0,109460.0,0.64893416]
[1756169960241,0.03128895,109470.0,109460.0,0.64893416]
[1756169960884,0.64385273,109470.0,109460.0,0.28614902]
[1756169961054,0.64385273,109470.0,109460.0,0.46292902]
[1756169961488,0.18271514,109460.0,109450.0,0.04157973]
[1756169961689,0.61260047,109460.0,109450.0,0.17464001]
[1756169961804,0.6295873,109460.0,109450.0,0.17670001]
[1756169962200,0.6295873,109460.0,109450.0,1e-08]
[1756169962348,0.6295873,109460.0,109450.0,0.17464001]
[1756169962544,0.72396259,109460.0,109450.0,1e-08]
[1756169962750,0.73245347,109460.0,109450.0,0.17464001]
[1756169962957,0.64100818,109460.0,109450.0,0.16394001]
[1756169963171,0.64100818,109460.0,109430.0,0.26543233]
[1756169963172,0.18274853,109440.0,109430.0,0.26543233]
[1756169963366,0.18274853,109440.0,109430.0,0.53403424]
[1756169963734,0.61063043,109450.0,109440.0,0.01744902]
[1756169963950,0.62760409,109450.0,109440.0,0.01950902]
[1756169964166,0.62760409,109450.0,109440.0,0.02275902]
[1756169964631,0.62760409,109450.0,109440.0,0.19410902]
[1756169964847,0.62760409,109450.0,109440.0,0.19735902]
[1756169965036,0.62958409,109450.0,109440.0,0.19406902]
[1756169965189,0.18274853,109440.0,109430.0,0.16547191]
[1756169965410,0.62958343,109440.0,109430.0,0.00047989]
[1756169965983,0.64166276,109440.0,109430.0,0.00047989]
[1756169966162,1.14208084,109440.0,109430.0,0.00047989]
[1756169966389,0.71419551,109440.0,109430.0,0.00047989]
[1756169966735,0.71125551,109440.0,109430.0,0.00047989]
[1756169966960,0.88577551,109440.0,109430.0,0.00047989]
[1756169967491,0.9801608,109440.0,109430.0,0.00047989]
[1756169967691,0.90762805,109440.0,109430.0,0.00047989]
[1756169968124,0.81324276,109440.0,109430.0,0.00047989]
[1756169969078,0.81618276,109440.0,109430.0,0.00047989]
[1756169969429,0.38535743,109440.0,109430.0,0.00047989]
[1756169969659,0.81324276,109440.0,109430.0,0.00047989]
[1756169970110,0.81620276,109440.0,109430.0,0.00047989]
[1756169970345,0.90764805,109440.0,109430.0,0.00047989]
[1756169970769,1.15316276,109440.0,109430.0,0.00047989]
[1756169971253,1.15612276,109440.0,109430.0,0.00047989]
[1756169971462,1.15605244,109440.0,109430.0,0.00047989]
[1756169971671,1.15309244,109440.0,109430.0,0.00047989]
[1756169972080,1.15605244,109440.0,109430.0,0.00047989]
[1756169972293,1.15309244,109440.0,109430.0,0.00047989]
[1756169972494,1.24453773,109440.0,109430.0,0.00047989]
[1756169972705,1.15309244,109440.0,109430.0,0.00047989]
[1756169972948,0.97865244,109440.0,109430.0,0.00047989]
[1756169973157,1.15301244,109440.0,109430.0,0.00047989]
[1756169973364,0.97865244,109440.0,109430.0,0.00047989]
[1756169973573,1.13612319,109440.0,109430.0,0.00256989]
[1756169974175,1.67528811,109440.0,109430.0,0.00047989]
[1756169975230,1.67524811,109440.0,109430.0,0.00047989]
[1756169976492,0.81947745,109440.0,109430.0,0.00047989]
[1756169976705,1.67891411,109440.0,109430.0,0.00047989]
[1756169977751,0.95065056,109430.0,109420.0,0.0004]
[1756169977961,4.14036838,109430.0,109420.0,0.00054367]
[1756169978173,4.14234838,109430.0,109420.0,0.00054367]
[1756169978827,4.31175175,109430.0,109420.0,0.00054367]
[1756169979250,4.32605558,109430.0,109420.0,1e-08]
[1756169979466,4.50029558,109430.0,109420.0,1e-08]
[1756169980121,4.50660927,109430.0,109420.0,1e-08]
[1756169980333,4.35660927,109430.0,109420.0,1e-08]
[1756169980568,4.48342128,109430.0,109420.0,1e-08]
[1756169980772,4.50656573,109430.0,109420.0,1e-08]
[1756169981004,4.34977475,109430.0,109420.0,1e-08]
[1756169981212,4.68897403,109430.0,109420.0,1e-08]
[1756169981419,4.48259744,109430.0,109420.0,1e-08]
[1756169981624,4.68896006,109430.0,109420.0,1e-08]
[1756169981854,4.66453867,109430.0,109420.0,1e-08]
[1756169982063,4.51604698,109430.0,109420.0,1e-08]
[1756169982276,4.66449867,109430.0,109420.0,1e-08]
[1756169982688,4.65019484,109430.0,109420.0,1e-08]
[1756169982898,4.65015484,109430.0,109420.0,1e-08]
[1756169983312,0.79023096,109420.0,109410.0,4e-05]
[1756169983554,4.72173956,109420.0,109410.0,4e-05]
[1756169983778,4.72173384,109420.0,109410.0,4e-05]
[1756169984000,4.62173384,109420.0,109410.0,4e-05]
[1756169984130,4.72173384,109420.0,109410.0,4e-05]
[1756169984337,4.70428482,109420.0,109410.0,4e-05]
[1756169984545,4.73178582,109420.0,109410.0,4e-05]
[1756169985176,4.76394844,109420.0,109410.0,4e-05]
[1756169985379,4.73178582,109420.0,109410.0,4e-05]
[1756169985584,4.76394844,109420.0,109410.0,4e-05]
[1756169986011,4.7813562,109420.0,109410.0,4e-05]
[1756169986210,4.6072362,109420.0,109410.0,4e-05]
[1756169986414,4.74915358,109420.0,109410.0,4e-05]
[1756169986611,4.7813162,109420.0,109410.0,4e-05]
[1756169986814,4.7812762,109420.0,109410.0,4e-05]
[1756169987563,4.6072362,109420.0,109410.0,4e-05]
[1756169987768,4.7783262,109420.0,109410.0,4e-05]
[1756169988438,4.75410734,109420.0,109410.0,4e-05]
[1756169989079,4.58301734,109420.0,109410.0,4e-05]
[1756169989253,4.48126127,109420.0,109410.0,4e-05]
[1756169989458,4.65526127,109420.0,109410.0,4e-05]
[1756169989872,4.79601151,109420.0,109410.0,4e-05]
[1756169990046,4.80235225,109420.0,109410.0,4e-05]
[1756169990248,4.80531225,109420.0,109410.0,4e-05]
[1756169990451,4.77315887,109420.0,109410.0,4e-05]
[1756169991461,0.52289894,109350.0,109340.0,0.00337]
[1756169991626,1.17784585,109350.0,109340.0,0.00560402]
[1756169991830,0.52291567,109340.0,109330.0,0.0002]
[1756169992058,1.14371024,109340.0,109330.0,0.00229]
[1756169992268,1.14371024,109340.0,109330.0,1e-08]
[1756169992653,4.39619553,109340.0,109330.0,1e-08]
[1756169993278,4.55546491,109340.0,109330.0,1e-08]
[1756169993478,4.23154491,109340.0,109330.0,1e-08]
[1756169993611,4.40239491,109340.0,109330.0,0.00209001]
[1756169993819,4.40029491,109340.0,109330.0,0.00209001]
[1756169994021,4.40546491,109340.0,109330.0,1e-08]
[1756169994218,4.40239491,109340.0,109330.0,0.00209001]
[1756169994423,4.40239491,109340.0,109330.0,1e-08]
[1756169994639,4.22637491,109340.0,109330.0,0.00209001]
[1756169994837,4.40025491,109340.0,109330.0,0.00209001]
[1756169995191,4.22637491,109340.0,109330.0,0.00209001]
[1756169995497,1.06840491,109340.0,109330.0,0.00498001]
[1756169995907,1.24228491,109340.0,109330.0,0.00498001]
[1756169996065,1.24228491,109340.0,109330.0,0.00209001]
[1756169997065,1.06840491,109340.0,109330.0,0.00209001]
[1756169997268,1.24232491,109340.0,109330.0,0.00209001]
[1756169997603,1.06797045,109340.0,109330.0,0.00209001]
[1756169997836,1.24185045,109340.0,109330.0,0.00209001]
[1756169998453,1.24185045,109340.0,109330.0,0.00498001]
[1756169998454,1.15040516,109340.0,109330.0,0.00498001]
[1756169998876,1.15252516,109340.0,109330.0,1e-08]
[1756169999259,1.13351961,109340.0,109330.0,0.00213001]
[1756169999397,1.15035459,109340.0,109330.0,0.00213001]
[1756169999843,0.72246798,109340.0,109330.0,0.00502001]
[1756170000045,1.15035347,109340.0,109330.0,0.00502001]
[1756170000260,1.15035347,109340.0,109330.0,0.00213001]
[1756170000470,0.54862814,109340.0,109330.0,0.00502001]
[1756170000674,0.72242814,109340.0,109330.0,0.02246903]
[1756170000895,1.15031347,109340.0,109330.0,0.02246903]
[1756170001095,1.15032115,109340.0,109330.0,0.00213001]
[1756170001317,4.40501644,109340.0,109330.0,1e-08]
[1756170001530,4.44805656,109340.0,109330.0,1e-08]
[1756170001748,4.45077011,109340.0,109330.0,1e-08]
[1756170001964,4.23122308,109340.0,109330.0,1e-08]
[1756170002259,4.40502308,109340.0,109330.0,1e-08]
[1756170002834,4.22806308,109340.0,109330.0,0.00213001]
[1756170003149,4.40502308,109340.0,109330.0,1e-08]
[1756170003823,4.23122308,109340.0,109330.0,1e-08]
[1756170004037,4.40498308,109340.0,109330.0,1e-08]
[1756170005476,4.50498308,109340.0,109330.0,1e-08]